fUSD/lending_fUSD_20250804
["ID","MTS","AMOUNT","RATE_DAILY","PERIOD"]
[377307964,1754329832376,-79.10429914,0.0003367,2]
[377307965,1754329832387,-217.89570086,0.0003367,2]
[377307966,1754329832398,-297.0,0.0003559,2]
[377307967,1754329832407,-300.0,0.00036993,2]
[377307968,1754329832417,-79.16833814,0.00036993,2]
[377307969,1754329832429,-120.83166186,0.00036993,2]
[377307970,1754329832438,-297.0,0.0003752,2]
[377307971,1754329832448,-297.0,0.0003944,2]
[377307972,1754329832457,-190.75,0.0004,120]
[377307973,1754329832467,-206.44,0.0004,120]
[377307974,1754329832476,-285.2231,0.0004,120]
[377307975,1754329832486,-159.0,0.00041,90]
[377307976,1754329832495,-297.0,0.0004137,2]
[377307977,1754329832505,-173.31,0.00041774,7]
[377307978,1754329832515,-2500.0,0.00042707,10]
[377307979,1754329832525,-151.82,0.00043115,120]
[377307980,1754329832534,-1200.0,0.00043289,5]
[377307981,1754329832543,-297.0,0.0004329,2]
[377307982,1754329832553,-212.50801496,0.000439,49]
[377307983,1754329832562,-300.0,0.00044684,5]
[377307984,1754329832572,-300.0,0.00044685,5]
[377307985,1754329832582,-212.50801496,0.00044686,51]
[377307986,1754329832591,-151.82,0.00044846,120]
[377307987,1754329832600,-272.78910822,0.0004522,30]
[377307988,1754329832687,-24.21089178,0.0004522,30]
[377307989,1754329832697,-212.50801496,0.00045471,52]
[377307990,1754329832706,-659.69,0.00045766,2]
[377307991,1754329832715,-537.09,0.000458,30]
[377307992,1754329832724,-150.0,0.000458,30]
[377307993,1754329832742,-301.33,0.000458,30]
[377307994,1754329832752,-537.09,0.000458,30]
[377307995,1754329832761,-359.08,0.000458,30]
[377307996,1754329832770,-150.0,0.000458,30]
[377307997,1754329832780,-172.88,0.000458,30]
[377307998,1754329832789,-537.09,0.000458,30]
[377307999,1754329832798,-165.39,0.000458,30]
[377308000,1754329832807,-537.09,0.000458,30]
[377308001,1754329832816,-23.4033593,0.000458,30]
[377308002,1754329832894,-335.6766407,0.000458,30]
[377308003,1754329832905,-23.5051533,0.000458,30]
[377308004,1754329832916,-126.4948467,0.000458,30]
[377308005,1754329832928,-247.6789533,0.000458,30]
[377308006,1754329833153,-289.4110467,0.000458,30]
[377308007,1754329833163,-172.88,0.000458,30]
[377308008,1754329833172,-165.39,0.000458,30]
[377308009,1754329833182,-537.09,0.000458,30]
[377308010,1754329833191,-359.08,0.000458,30]
[377308011,1754329833201,-172.88,0.000458,30]
[377308012,1754329833211,-537.09,0.000458,30]
[377308013,1754329833221,-150.0,0.000458,30]
[377308014,1754329833231,-165.39,0.000458,30]
[377308015,1754329833241,-359.08,0.000458,30]
[377308016,1754329833251,-537.09,0.000458,30]
[377308017,1754329833260,-172.88,0.000458,30]
[377308018,1754329833270,-150.0,0.000458,30]
[377308019,1754329833280,-172.88,0.000458,30]
[377308020,1754329833290,-150.0,0.000458,30]
[377308021,1754329833299,-165.39,0.000458,30]
[377308022,1754329833309,-165.39,0.000458,30]
[377308023,1754329833323,-449.67,0.000458,30]
[377308024,1754329833333,-165.39,0.000458,30]
[377308025,1754329833343,-165.39,0.000458,30]
[377308026,1754329833352,-165.39,0.000458,30]
[377308027,1754329833363,-165.39,0.000458,30]
[377308028,1754329833372,-165.39,0.000458,30]
[377308029,1754329833382,-165.39,0.000458,30]
[377308030,1754329833393,-165.39,0.000458,30]
[377308031,1754329833404,-448.31,0.000458,30]
[377308032,1754329833413,-165.18,0.000458,30]
[377308033,1754329833423,-358.78,0.000458,30]
[377308034,1754329833433,-1000.0,0.000458,30]
[377308035,1754329833442,-1000.0,0.000458,30]
[377308036,1754329833452,-953.0,0.000458,30]
[377308037,1754329833462,-1123.0,0.000458,120]
[377308038,1754329833471,-1317.11,0.00045801,120]
[377308039,1754329833481,-212.50801496,0.00046257,54]
[377308040,1754329833491,-151.82,0.00046576,120]
[377308041,1754329833501,-5510.0,0.000469,5]
[377308042,1754329833511,-212.50801496,0.00047043,55]
[377308043,1754329833520,-297.0,0.0004714,30]
[377308044,1754329833530,-200.56385144,0.0004715,2]
[377308045,1754329833542,-130.44544856,0.0004715,2]
[377308046,1754329833552,-5199.96827837,0.00047231,4]
[377308047,1754329833565,-471.17768747,0.00047231,4]
[377308048,1754329833577,-2562.46193508,0.00047231,4]
[377308175,1754329838109,-515.29482318,0.00047076,120]
[377308180,1754329838139,-372.70517682,0.00047076,120]
[377308182,1754329838149,-109.29733874,0.00047231,4]
[377308184,1754329838160,-429.51004039,0.00047231,4]
[377308187,1754329838172,-521.8081193,0.00047231,4]
[377308189,1754329838183,-1587.67950022,0.00047231,4]
[377308191,1754329838195,-1876.24497471,0.00047231,4]
[377308193,1754329838206,-521.7837912,0.00047231,4]
[377308195,1754329838218,-76.90833452,0.00047231,4]
[377308197,1754329838227,-250.0,0.00047344,120]
[377308200,1754329838237,-212.50801496,0.00047829,57]
[377308201,1754329838246,-150.0,0.00048,2]
[377308203,1754329838256,-165.56,0.00048041,2]
[377308206,1754329838266,-1867.44409502,0.000482,7]
[377308208,1754329838278,-1522.3339404,0.000482,7]
[377308210,1754329838289,-5886.686275,0.000482,7]
[377308216,1754329838342,-287.33488781,0.000482,7]
[377308218,1754329838354,-925.82080177,0.000482,7]
[377308220,1754329838365,-86.9517854,0.00048306,83]
[377308222,1754329838377,-641.6902146,0.00048306,83]
[377308224,1754329838386,-151.82,0.00048306,120]
[377308226,1754329838397,-145.8207817,0.00048359,7]
[377308231,1754329838432,-29.1792183,0.00048359,7]
[377308233,1754329838441,-410.1979085,0.00048562,3]
[377308235,1754329838453,-477.8020915,0.00048562,3]
[377308237,1754329838463,-212.50801496,0.00048614,58]
[377308239,1754329838473,-165.98,0.00048924,2]
[377308241,1754329838483,-600.0,0.00048972,18]
[377308243,1754329838492,-600.0,0.00048972,18]
[377308245,1754329838502,-600.0,0.00048972,18]
[377308247,1754329838513,-137.38415492,0.00048972,18]
[377308251,1754329838538,-407.29,0.00047576,120]
[377308253,1754329838549,-480.71,0.00047576,120]
[377308255,1754329838558,-43.465,0.00048972,18]
[377308257,1754329838570,-419.15084508,0.00048972,18]
[377308259,1754329838581,-600.0,0.00048972,18]
[377308261,1754329838590,-600.0,0.00048972,18]
[377308263,1754329838600,-600.0,0.00048972,18]
[377308265,1754329838609,-526.261705,0.00048972,18]
[377308267,1754329838618,-297.0,0.0004907,30]
[377308269,1754329838628,-259.58744992,0.00049124,120]
[377308395,1754329840196,-240.41255008,0.00049124,120]
[377308397,1754329840206,-168.10412266,0.00049153,60]
[377308401,1754329840248,-22.89587734,0.00049153,60]
[377308402,1754329840259,-10489.62,0.000492,7]
[377308403,1754329840269,-1776.0,0.00049316,120]
[377308404,1754329840279,-212.50801496,0.000494,60]
[377308405,1754329840289,-1558.85139632,0.000495,2]
[377308406,1754329840300,-476.1899999,0.000495,2]
[377308407,1754329840312,-494.24373185,0.000495,2]
[377308408,1754329840359,-398.05964608,0.000495,2]
[377308409,1754329840371,-3928.34531763,0.000495,2]
[377308410,1754329840411,-1299.03999992,0.000495,2]
[377308411,1754329840423,-4156.40940228,0.000495,2]
[377308412,1754329840435,-1535.07693399,0.000495,2]
[377308413,1754329840445,-417.47356308,0.000495,2]
[377308414,1754329840490,-388.12002,0.000495,2]
[377308415,1754329840501,-528.45166818,0.000495,2]
[377308416,1754329840533,-1501.17968,0.000495,2]
[377308417,1754329840545,-2608.13706747,0.000495,2]
[377308418,1754329840556,-3478.22252,0.000495,2]
[377308425,1754329843207,-12232.1990533,0.000495,2]
[377308426,1754329843217,-888.0,0.00049624,120]
[377308427,1754329843227,-1776.0,0.00049816,120]
[377308428,1754329843237,-200.0,0.00049952,120]
[377308429,1754329843247,-111331.9,0.0005,120]
[377308430,1754329843257,-153.85,0.0005,120]
[377308431,1754329843267,-151.82,0.00050037,120]
[377308432,1754329843278,-212.50801496,0.00050186,61]
[377308433,1754329843288,-3799.24,0.00050695,120]
[377308434,1754329843298,-2500.0,0.00050762,2]
[377308435,1754329843312,-510.0,0.00050776,20]
[377308436,1754329843329,-500.0,0.00050802,30]
[377308437,1754329843344,-500.0,0.00050802,30]
[377308438,1754329843361,-500.0,0.00050802,30]
[377308439,1754329843371,-500.0,0.00050802,30]
[377308440,1754329843381,-500.0,0.00050802,30]
[377308441,1754329843390,-500.0,0.00050802,30]
[377308442,1754329843399,-500.0,0.00050802,30]
[377308443,1754329843408,-500.0,0.00050802,30]
[377308444,1754329843417,-500.0,0.00050802,30]
[377308445,1754329843428,-500.0,0.00050802,30]
[377308446,1754329843439,-500.0,0.00050802,30]
[377308447,1754329843450,-500.0,0.00050802,30]
[377308448,1754329843460,-500.0,0.00050802,30]
[377308449,1754329843469,-500.0,0.00050802,30]
[377308450,1754329843479,-500.0,0.00050802,30]
[377308451,1754329843488,-500.0,0.00050802,30]
[377308452,1754329843498,-500.0,0.00050802,30]
[377308453,1754329843508,-500.0,0.00050802,30]
[377308454,1754329843518,-500.0,0.00050802,30]
[377308455,1754329843528,-500.0,0.00050802,30]
[377308456,1754329843537,-500.0,0.00050802,30]
[377308457,1754329843546,-500.0,0.00050802,30]
[377308458,1754329843556,-500.0,0.00050802,30]
[377308459,1754329843566,-500.0,0.00050802,30]
[377308460,1754329843576,-500.0,0.00050802,30]
[377308461,1754329843585,-500.0,0.00050802,30]
[377308462,1754329843594,-500.0,0.00050802,30]
[377308463,1754329843603,-500.0,0.00050802,30]
[377308464,1754329843612,-500.0,0.00050802,30]
[377308465,1754329843623,-500.0,0.00050802,30]
[377308466,1754329843633,-500.0,0.00050802,30]
[377308468,1754329843643,-500.0,0.00050802,30]
[377308469,1754329843652,-500.0,0.00050802,30]
[377308470,1754329843663,-500.0,0.00050802,30]
[377308471,1754329843672,-500.0,0.00050802,30]
[377308472,1754329843683,-500.0,0.00050802,30]
[377308473,1754329843693,-500.0,0.00050802,30]
[377308474,1754329843703,-500.0,0.00050802,30]
[377308475,1754329843713,-500.0,0.00050802,30]
[377308476,1754329843722,-500.0,0.00050802,30]
[377308477,1754329843732,-500.0,0.00050802,30]
[377308478,1754329843742,-500.0,0.00050802,30]
[377308479,1754329843751,-500.0,0.00050802,30]
[377308480,1754329843760,-500.0,0.00050802,30]
[377308481,1754329843769,-500.0,0.00050802,30]
[377308482,1754329843779,-500.0,0.00050802,30]
[377308483,1754329843789,-500.0,0.00050802,30]
[377308484,1754329843798,-500.0,0.00050802,30]
[377308485,1754329843807,-500.0,0.00050802,30]
[377308486,1754329843817,-500.0,0.00050802,30]
[377308487,1754329843828,-500.0,0.00050802,30]
[377308488,1754329843837,-500.0,0.00050802,30]
[377308489,1754329843847,-500.0,0.00050802,30]
[377308490,1754329843856,-500.0,0.00050802,30]
[377308491,1754329843866,-500.0,0.00050802,30]
[377308492,1754329843875,-500.0,0.00050802,30]
[377308493,1754329843885,-500.0,0.00050802,30]
[377308494,1754329843894,-500.0,0.00050802,30]
[377308495,1754329843903,-500.0,0.00050802,30]
[377308496,1754329843913,-500.0,0.00050802,30]
[377308497,1754329843922,-500.0,0.00050802,30]
[377308498,1754329843932,-500.0,0.00050802,30]
[377308499,1754329843941,-500.0,0.00050802,30]
[377308500,1754329843951,-500.0,0.00050802,30]
[377308501,1754329843960,-500.0,0.00050802,30]
[377308502,1754329843969,-500.0,0.00050802,30]
[377308503,1754329843979,-500.0,0.00050802,30]
[377308504,1754329843988,-500.0,0.00050802,30]
[377308505,1754329843998,-500.0,0.00050802,30]
[377308506,1754329844012,-500.0,0.00050802,30]
[377308507,1754329844025,-500.0,0.00050802,30]
[377308508,1754329844036,-500.0,0.00050802,30]
[377308509,1754329844045,-282.0,0.00050802,30]
[377308510,1754329844054,-1776.0,0.00050802,3]
[377308511,1754329844064,-3359.0,0.00050863,120]
[377308512,1754329844073,-865.0,0.00050863,120]
[377308513,1754329844084,-21419.0,0.00050863,120]
[377308514,1754329844094,-150.0,0.00050925,2]
[377308515,1754329844103,-212.50801496,0.00050971,63]
[377308516,1754329844113,-297.0,0.0005099,30]
[377308517,1754329844122,-10489.62,0.00051,7]
[377308518,1754329844133,-541.06501112,0.00051099,2]
[377308519,1754329844143,-689.59266123,0.00051273,2]
[377308520,1754329844152,-838.12031134,0.00051447,2]
[377308522,1754329844162,-1317.11,0.00051526,120]
[377308524,1754329844171,-178.07259578,0.0005162,28]
[377308525,1754329844181,-986.64796145,0.00051621,2]
[377308526,1754329844190,-1200.0,0.000517,18]
[377308527,1754329844199,-575.6668282,0.0005172,120]
[377308528,1754329844210,-212.50801496,0.00051757,64]
[377308529,1754329844220,-151.82,0.00051767,120]
[377308530,1754329844231,-164.75558109,0.0005177,15]
[377308531,1754329844241,-1135.17561156,0.00051794,2]
[377308532,1754329844251,-151.0,0.00051796,120]
[377308533,1754329844260,-400.0,0.000518,120]
[377308534,1754329844269,-400.0,0.000518,120]
[377308535,1754329844279,-400.0,0.000518,120]
[377308536,1754329844288,-400.0,0.000518,120]
[377308537,1754329844298,-2500.0,0.000518,18]
[377308538,1754329844308,-161.62063569,0.000518,31]
[377308539,1754329844318,-500.0,0.00051808,2]
[377308540,1754329844331,-22385.541182,0.00051859,4]
[377308541,1754329844341,-500.0,0.00051859,120]
[377308542,1754329844351,-301.06608842,0.00051859,120]
[377308543,1754329844362,-500.0,0.00051859,31]
[377308544,1754329844371,-500.0,0.00051859,7]
[377308545,1754329844381,-500.0,0.00051859,120]
[377308546,1754329844390,-500.0,0.00051859,120]
[377308547,1754329844400,-500.0,0.00051859,31]
[377308548,1754329844410,-500.0,0.00051859,120]
[377308549,1754329844420,-350.02955272,0.00051859,7]
[377308550,1754329844430,-500.0,0.00051859,120]
[377308551,1754329844440,-559.49798557,0.00051859,31]
[377308552,1754329844451,-500.0,0.00051859,120]
[377308553,1754329844461,-500.0,0.00051859,7]
[377308554,1754329844471,-500.0,0.00051859,120]
[377308555,1754329844480,-500.0,0.00051859,120]
[377308556,1754329844490,-346.94800079,0.00051859,120]
[377308557,1754329844500,-5109.2591049,0.0005186,61]
[377308558,1754329844510,-88862.44966178,0.0005186,45]
[377308559,1754329844520,-174786.78004993,0.0005186,4]
[377308560,1754329844560,-504.587572,0.0005186,4]
[377308561,1754329844653,-52.4948777,0.0005186,4]
[377308562,1754329844673,-3035.59793495,0.0005186,4]
[377308563,1754329844685,-29315.0,0.0005186,4]
[377308564,1754329844696,-3874.88907183,0.0005186,4]
[377308565,1754329844759,-2074.3,0.0005186,4]
[377308568,1754329846393,-888.0,0.0005,3]
[377308569,1754329846404,-4222.7483376,0.00050509,2]
[377308570,1754329846432,-12550.98512,0.00050509,2]
[377308571,1754329846444,-7126.2665424,0.00050509,2]
[377308572,1754329846454,-10211.76231359,0.0005186,4]
[377308573,1754329846463,-1605.0,0.00051863,120]
[377308574,1754329846473,-1776.0,0.00051864,120]
[377308575,1754329846483,-44771.0823639,0.0005187,4]
[377308576,1754329846493,-201469.870638,0.0005187,4]
[377308577,1754329846503,-3800.0,0.000519,18]
[377308578,1754329846513,-1598.26,0.000519,30]
[377308579,1754329846523,-510.0,0.00051929,20]
[377308580,1754329846532,-1283.70326167,0.00051968,2]
[377308581,1754329846542,-600.0,0.0005199,120]
[377308582,1754329846552,-161.62063567,0.000521,31]
[377308583,1754329846561,-1432.23091178,0.00052142,2]
[377308584,1754329846571,-1776.0,0.0005224,3]
[377308585,1754329846582,-888.0,0.00052257,64]
[377308586,1754329846592,-1580.75856189,0.00052316,2]
[377308587,1754329846602,-1000.0,0.00052353,120]
[377308588,1754329846611,-59263.3154,0.000524,2]
[377308589,1754329846621,-161.62063567,0.000524,31]
[377308590,1754329846631,-150.0,0.00052473,3]
[377308591,1754329846640,-500.0,0.00052473,10]
[377308592,1754329846650,-205.89937981,0.00052473,10]
[377308593,1754329846659,-400.0,0.00052489,15]
[377308594,1754329846669,-1729.28621201,0.0005249,2]
[377308595,1754329846679,-151.09,0.0005249,120]
[377308596,1754329846689,-975767.46582749,0.000525,120]
[377308597,1754329846818,-15809.43785998,0.000525,120]
[377308598,1754329846951,-1170.12337412,0.000525,120]
[377308599,1754329847016,-705.8824495,0.000525,120]
[377308600,1754329847032,-2656.99000105,0.000525,120]
[377308601,1754329847059,-504.18583705,0.000525,120]
[377308602,1754329847094,-3385.91465081,0.000525,120]
[377308603,1754329847104,-151.0,0.000525,120]
[377308604,1754329847114,-273.967613,0.000525,120]
[377308605,1754329847124,-151.0,0.000525,120]
[377308606,1754329847134,-151.0,0.000525,120]
[377308607,1754329847143,-151.0,0.000525,120]
[377308608,1754329847152,-1199.859741,0.000525,120]
[377308609,1754329847162,-212.50801496,0.00052543,66]
[377308610,1754329847171,-500.0,0.00052601,120]
[377308611,1754329847181,-200.0,0.00052601,120]
[377308612,1754329847192,-1598.26,0.000528,30]
[377308613,1754329847200,-154.75550799,0.000528,2]
[377308614,1754329847210,-173.31,0.00052805,14]
[377308615,1754329847221,-164.61,0.00052868,2]
[377308616,1754329847230,-321.06082628,0.0005288,120]
[377308780,1754330584011,156.59,0.00030137,120]
[377308786,1754330601917,159.72,0.00013699,2]
[377308798,1754330883404,156.0,0.00027397,120]
[377308805,1754330967636,-159.72,0.00024907,2]
[377308806,1754330967658,-250.0,0.00027397,2]
[377308807,1754330967684,-174.86292599,0.0003085,30]
[377308811,1754331031409,-417.77,0.0003085,30]
[377308812,1754331031419,-277.03,0.00033801,30]
[377308813,1754331031430,-140.74,0.00033801,30]
[377308814,1754331031440,-1564.9165436,0.00033812,2]
[377308815,1754331031450,-159.72,0.00036115,2]
[377308816,1754331031472,-265.30019422,0.00036327,2]
[377308817,1754331031482,-417.77,0.00036751,60]
[377308818,1754331031492,-417.77,0.00039702,60]
[377308819,1754331031502,-417.77,0.00042652,60]
[377308820,1754331031523,-196.83,0.00043538,120]
[377308821,1754331031540,-500.0,0.000444,15]
[377308822,1754331031567,-154.0,0.00045,120]
[377308823,1754331031584,-339.3759679,0.00045005,2]
[377308824,1754331031602,-3217.02,0.00045125,30]
[377308825,1754331031620,-196.83,0.00045268,120]
[377308826,1754331031635,-417.77,0.00045603,120]
[377308827,1754331031654,-1000.0,0.00045778,2]
[377308828,1754331031673,-2031.0,0.00045899,5]
[377308829,1754331031692,-211.36460094,0.000459,53]
[377308830,1754331031712,-200.0,0.00045966,60]
[377308831,1754331031730,-306.49334386,0.00046244,2]
[377308832,1754331031749,-154.0,0.000463,120]
[377308833,1754331031765,-196.83,0.00046998,120]
[377308834,1754331031780,-159.72,0.00047323,2]
[377308835,1754331031801,-582.913,0.00047498,80]
[377308836,1754331031813,-209.64,0.00047498,36]
[377308837,1754331031830,-166.54,0.00047498,2]
[377308838,1754331031847,-152.0,0.00047561,3]
[377308839,1754331031861,-154.0,0.000477,120]
[377308840,1754331031887,-185.26,0.00047898,120]
[377308841,1754331031902,-666.0,0.00048053,3]
[377308842,1754331031917,-150.0,0.000481,2]
[377308843,1754331031932,-1000.0,0.00048219,120]
[377308844,1754331031947,-1000.0,0.00048219,120]
[377308845,1754331031962,-1000.0,0.00048219,120]
[377308846,1754331031977,-1000.0,0.00048219,120]
[377308847,1754331031991,-1000.0,0.00048219,120]
[377308848,1754331032007,-1000.0,0.00048219,120]
[377308849,1754331032023,-1000.0,0.00048219,120]
[377308850,1754331032038,-1000.0,0.00048219,120]
[377308852,1754331032053,-1000.0,0.00048219,120]
[377308853,1754331032069,-1000.0,0.00048219,120]
[377308855,1754331032083,-1000.0,0.00048219,120]
[377308856,1754331032099,-1000.0,0.00048219,120]
[377308857,1754331032115,-1000.0,0.00048219,120]
[377308858,1754331032131,-1000.0,0.00048219,120]
[377308859,1754331032146,-483.79,0.00048219,120]
[377308860,1754331032162,-165.46,0.00048223,2]
[377308861,1754331032177,-329.84,0.00048376,2]
[377308862,1754331032193,-1386.86,0.00048381,120]
[377308863,1754331032208,-22297.22557085,0.00048405,2]
[377308864,1754331032353,-1602.77442915,0.00048405,2]
[377308865,1754331032368,-417.77,0.00048554,120]
[377308866,1754331032384,-200.0,0.00048723,2]
[377308867,1754331032398,-196.83,0.00048729,120]
[377308868,1754331032414,-13410.9672736,0.00048752,2]
[377308869,1754331032433,-6328.8157264,0.00048752,2]
[377308870,1754331032448,-865.0,0.00048752,2]
[377308871,1754331032462,-151.83,0.00048771,2]
[377308872,1754331032478,-154.0,0.00049,120]
[377308873,1754331032493,-211.36460094,0.00049233,59]
[377308874,1754331032509,-500.0,0.00049597,120]
[377308875,1754331032524,-200.0,0.00049597,120]
[377308876,1754331032539,-1188.0,0.000496,2]
[377308877,1754331032554,-160.0,0.00049844,2]
[377308878,1754331032570,-808.0048068,0.000499,120]
[377308879,1754331032590,-691.9951932,0.000499,120]
[377308882,1754331032605,-1000.0,0.000499,2]
[377308884,1754331032621,-1611.23162787,0.00049923,120]
[377308886,1754331032643,-388.76837213,0.00049923,120]
[377308887,1754331032659,-512.0,0.00049929,10]
[377308888,1754331032675,-154.23434263,0.0005,98]
[377308889,1754331032692,-270.54656675,0.0005,30]
[377308894,1754331032761,-3868.88191505,0.0005,30]
[377308895,1754331032835,-860.5715182,0.0005,30]
[377308896,1754331032852,-153.85,0.0005,120]
[377308897,1754331032867,-175.0,0.00050099,7]
[377308898,1754331032882,-250.0,0.0005012,120]
[377308899,1754331032897,-12196.59,0.00050202,2]
[377308900,1754331032913,-154.0,0.000504,120]
[377308901,1754331032928,-196.83,0.00050459,120]
[377308902,1754331032943,-888.0,0.000505,3]
[377308903,1754331032959,-216.22,0.00050576,120]
[377308904,1754331032974,-878.27754759,0.00050753,120]
[377308905,1754331032989,-188.27896706,0.00051048,20]
[377308906,1754331033032,-323.72103294,0.00051048,20]
[377308907,1754331033050,-150.0,0.00051294,2]
[377308908,1754331033066,-560.73254956,0.00051469,2]
[377308909,1754331033081,-1187.0,0.000515,2]
[377308910,1754331033099,-164.4023824,0.00051501,120]
[377308911,1754331033138,-835.5976176,0.00051501,120]
[377308912,1754331033154,-417.77,0.00051504,120]
[377308913,1754331033169,-714.65913179,0.00051644,2]
[377308914,1754331033185,-154.0,0.000517,120]
[377308915,1754331033200,-274.8133,0.00051719,2]
[377308916,1754331033216,-295.44361553,0.00051719,15]
[377308917,1754331033237,-308.74,0.00051752,120]
[377308918,1754331033253,-500.0,0.00051819,120]
[377308919,1754331033268,-500.0,0.00051819,120]
[377308920,1754331033284,-500.0,0.00051819,120]
[377308921,1754331033299,-500.0,0.00051819,120]
[377308922,1754331033316,-500.0,0.00051819,120]
[377308923,1754331033331,-500.0,0.00051819,120]
[377308924,1754331033346,-500.0,0.00051819,120]
[377308925,1754331033361,-500.0,0.00051819,120]
[377308926,1754331033381,-500.0,0.00051819,120]
[377308927,1754331033396,-500.0,0.00051819,120]
[377308928,1754331033412,-500.0,0.00051819,120]
[377308929,1754331033426,-500.0,0.00051819,120]
[377308930,1754331033442,-500.0,0.00051819,120]
[377308931,1754331033457,-500.0,0.00051819,120]
[377308932,1754331033472,-500.0,0.00051819,120]
[377308933,1754331033487,-500.0,0.00051819,120]
[377308934,1754331033504,-500.0,0.00051819,120]
[377308935,1754331033519,-500.0,0.00051819,120]
[377308936,1754331033534,-500.0,0.00051819,120]
[377308937,1754331033551,-500.0,0.00051819,120]
[377308938,1754331033567,-500.0,0.00051819,120]
[377308939,1754331033582,-500.0,0.00051819,120]
[377308940,1754331033598,-500.0,0.00051819,120]
[377308941,1754331033612,-500.0,0.00051819,120]
[377308942,1754331033628,-500.0,0.00051819,120]
[377308943,1754331033644,-500.0,0.00051819,120]
[377308944,1754331033660,-500.0,0.00051819,120]
[377308945,1754331033678,-500.0,0.00051819,120]
[377308946,1754331033698,-500.0,0.00051819,120]
[377308947,1754331033713,-500.0,0.00051819,120]
[377308948,1754331033728,-500.0,0.00051819,120]
[377308949,1754331033744,-500.0,0.00051819,120]
[377308950,1754331033759,-500.0,0.00051819,120]
[377308951,1754331033776,-500.0,0.00051819,120]
[377308952,1754331033792,-500.0,0.00051819,120]
[377308953,1754331033808,-500.0,0.00051819,120]
[377308954,1754331033824,-500.0,0.00051819,120]
[377308955,1754331033840,-500.0,0.00051819,120]
[377308956,1754331033855,-500.0,0.00051819,120]
[377308957,1754331033871,-500.0,0.00051819,120]
[377308958,1754331033886,-500.0,0.00051819,120]
[377308959,1754331033901,-500.0,0.00051819,120]
[377308960,1754331033916,-500.0,0.00051819,120]
[377308961,1754331033932,-500.0,0.00051819,120]
[377308962,1754331033946,-500.0,0.00051819,120]
[377308963,1754331033960,-500.0,0.00051819,120]
[377308964,1754331033975,-500.0,0.00051819,120]
[377308965,1754331033989,-500.0,0.00051819,120]
[377308966,1754331034005,-500.0,0.00051819,120]
[377308967,1754331034020,-500.0,0.00051819,120]
[377308968,1754331034036,-500.0,0.00051819,120]
[377308969,1754331034049,-500.0,0.00051819,120]
[377308970,1754331034064,-500.0,0.00051819,120]
[377308971,1754331034078,-500.0,0.00051819,120]
[377308972,1754331034092,-500.0,0.00051819,120]
[377308973,1754331034105,-500.0,0.00051819,120]
[377308974,1754331034116,-500.0,0.00051819,120]
[377308975,1754331034126,-500.0,0.00051819,120]
[377308976,1754331034136,-500.0,0.00051819,120]
[377308977,1754331034146,-500.0,0.00051819,120]
[377308978,1754331034156,-500.0,0.00051819,120]
[377308979,1754331034166,-500.0,0.00051819,120]
[377308980,1754331034176,-500.0,0.00051819,120]
[377308981,1754331034186,-500.0,0.00051819,120]